fUSD/lending_fUSD_20260605
["ID","MTS","AMOUNT","RATE_DAILY","PERIOD"]
[424212494,1780669832000,-1065.17447858,9.037e-05,2]
[424212491,1780669832000,-1065.17447858,9.037e-05,2]
[424212510,1780669832000,-1065.17447858,9.037e-05,2]
[424212509,1780669832000,-1065.17447858,9.037e-05,2]
[424212520,1780669832000,-1083.47307833,9.037e-05,2]
[424212525,1780669832000,-1083.47307833,9.037e-05,2]
[424212514,1780669832000,-1083.47307833,9.037e-05,2]
[424212528,1780669832000,-1083.47307833,9.037e-05,2]
[424212522,1780669832000,-1083.47307833,9.037e-05,2]
[424212512,1780669832000,-1083.47307833,9.037e-05,2]
[424212516,1780669832000,-1083.47307833,9.037e-05,2]
[424212526,1780669832000,-1083.47307833,9.037e-05,2]
[424212518,1780669832000,-1083.47307833,9.037e-05,2]
[424212507,1780669832000,-1065.17447858,9.037e-05,2]
[424212531,1780669832000,-1083.47307833,9.037e-05,2]
[424212530,1780669832000,-1083.47307833,9.037e-05,2]
[424212535,1780669832000,-1083.47307833,9.037e-05,2]
[424212540,1780669832000,-1083.47307833,9.037e-05,2]
[424212532,1780669832000,-1083.47307833,9.037e-05,2]
[424212524,1780669832000,-1083.47307833,9.037e-05,2]
[424212505,1780669832000,-1065.17447858,9.037e-05,2]
[424212485,1780669832000,-1065.17447858,9.037e-05,2]
[424212488,1780669832000,-1065.17447858,9.037e-05,2]
[424212466,1780669832000,-287.06431718,9.037e-05,2]
[424212471,1780669832000,-1065.17447858,9.037e-05,2]
[424212470,1780669832000,-1065.17447858,9.037e-05,2]
[424212468,1780669832000,-1065.17447858,9.037e-05,2]
[424212469,1780669832000,-1065.17447858,9.037e-05,2]
[424212467,1780669832000,-463.41498128,9.037e-05,2]
[424212472,1780669832000,-1065.17447858,9.037e-05,2]
[424212474,1780669832000,-313.94677833,9.037e-05,2]
[424212473,1780669832000,-1065.17447858,9.037e-05,2]
[424212475,1780669832000,-751.22770025,9.037e-05,2]
[424212477,1780669832000,-1065.17447858,9.037e-05,2]
[424212503,1780669832000,-1065.17447858,9.037e-05,2]
[424212476,1780669832000,-1065.17447858,9.037e-05,2]
[424212480,1780669832000,-1065.17447858,9.037e-05,2]
[424212479,1780669832000,-816.33326255,9.037e-05,2]
[424212478,1780669832000,-248.84121603,9.037e-05,2]
[424212483,1780669832000,-1065.17447858,9.037e-05,2]
[424212481,1780669832000,-1065.17447858,9.037e-05,2]
[424212484,1780669832000,-1065.17447858,9.037e-05,2]
[424212533,1780669832000,-1083.47307833,9.037e-05,2]
[424212486,1780669832000,-1065.17447858,9.037e-05,2]
[424212487,1780669832000,-1065.17447858,9.037e-05,2]
[424212489,1780669832000,-1065.17447858,9.037e-05,2]
[424212500,1780669832000,-1065.17447858,9.037e-05,2]
[424212482,1780669832000,-1065.17447858,9.037e-05,2]
[424212536,1780669832000,-1083.47307833,9.037e-05,2]
[424212490,1780669832000,-1065.17447858,9.037e-05,2]
[424212538,1780669832000,-1083.47307833,9.037e-05,2]
[424212564,1780669832000,-500.0,9.147e-05,2]
[424212537,1780669832000,-1083.47307833,9.037e-05,2]
[424212572,1780669832000,-500.0,9.147e-05,2]
[424212570,1780669832000,-500.0,9.147e-05,2]
[424212571,1780669832000,-500.0,9.147e-05,2]
[424212576,1780669832000,-500.0,9.147e-05,2]
[424212574,1780669832000,-500.0,9.147e-05,2]
[424212569,1780669832000,-500.0,9.147e-05,2]
[424212573,1780669832000,-500.0,9.147e-05,2]
[424212578,1780669832000,-500.0,9.147e-05,2]
[424212577,1780669832000,-500.0,9.147e-05,2]
[424212563,1780669832000,-500.0,9.147e-05,2]
[424212575,1780669832000,-500.0,9.147e-05,2]
[424212580,1780669832000,-500.0,9.147e-05,2]
[424212581,1780669832000,-500.0,9.147e-05,2]
[424212587,1780669832000,-500.0,9.147e-05,2]
[424212588,1780669832000,-500.0,9.147e-05,2]
[424212583,1780669832000,-500.0,9.147e-05,2]
[424212589,1780669832000,-500.0,9.147e-05,2]
[424212586,1780669832000,-500.0,9.147e-05,2]
[424212582,1780669832000,-176.35048044,9.147e-05,2]
[424212584,1780669832000,-500.0,9.147e-05,2]
[424212585,1780669832000,-500.0,9.147e-05,2]
[424212590,1780669832000,-187.64249009,9.147e-05,2]
[424212579,1780669832000,-500.0,9.147e-05,2]
[424212560,1780669832000,-500.0,9.147e-05,2]
[424212568,1780669832000,-500.0,9.147e-05,2]
[424212562,1780669832000,-626.83246485,9.147e-05,2]
[424212539,1780669832000,-1083.47307833,9.037e-05,2]
[424212541,1780669832000,-1083.47307833,9.037e-05,2]
[424212542,1780669832000,-1083.47307833,9.037e-05,2]
[424212534,1780669832000,-1083.47307833,9.037e-05,2]
[424212544,1780669832000,-1083.47307833,9.037e-05,2]
[424212543,1780669832000,-1083.47307833,9.037e-05,2]
[424212554,1780669832000,-200.0,9.141e-05,2]
[424212555,1780669832000,-473.62634025,9.147e-05,2]
[424212591,1780669832000,-500.0,9.147e-05,2]
[424212546,1780669832000,-1083.47307833,9.037e-05,2]
[424212548,1780669832000,-250.0,9.097e-05,2]
[424212553,1780669832000,-10258.3813773,9.14e-05,2]
[424212545,1780669832000,-1083.47307833,9.037e-05,2]
[424212552,1780669832000,-555343.18430879,9.14e-05,2]
[424212565,1780669832000,-500.0,9.147e-05,2]
[424212551,1780669832000,-300.0,9.139e-05,2]
[424212559,1780669832000,-454.67588883,9.147e-05,2]
[424212566,1780669832000,-563.74022674,9.147e-05,2]
[424212556,1780669832000,-500.0,9.147e-05,2]
[424212561,1780669832000,-500.0,9.147e-05,2]
[424212558,1780669832000,-259.00789952,9.147e-05,2]
[424212557,1780669832000,-500.0,9.147e-05,2]
[424212547,1780669832000,-161.70574605,9.037e-05,2]
[424212550,1780669832000,-1200.0,9.139e-05,2]
[424212549,1780669832000,-300.0,9.139e-05,2]
[424212567,1780669832000,-500.0,9.147e-05,2]
[424212592,1780669833000,-187.64249009,9.147e-05,2]
[424212594,1780669833000,-500.0,9.147e-05,2]
[424212595,1780669833000,-500.0,9.147e-05,2]
[424212596,1780669833000,-474.56532732,9.147e-05,2]
[424212597,1780669833000,-500.0,9.147e-05,2]
[424212598,1780669833000,-548.74165168,9.147e-05,2]
[424212593,1780669833000,-349.47697204,9.147e-05,2]
[424212599,1780669833000,-370.51614873,9.147e-05,2]
[424212602,1780669833000,-211.43920697,9.147e-05,2]
[424212601,1780669833000,-227.46592042,9.147e-05,2]
[424212607,1780669833000,-35695.92525826,9.148e-05,2]
[424212606,1780669833000,-47018.29305017,9.148e-05,2]
[424212605,1780669833000,-29606.25113922,9.148e-05,2]
[424212600,1780669833000,-228.3999072,9.147e-05,2]
[424212609,1780669833000,-7634.04617691,9.148e-05,2]
[424212608,1780669833000,-535.65818766,9.148e-05,2]
[424212603,1780669833000,-500.0,9.147e-05,2]
[424212604,1780669833000,-105515.41479984,9.148e-05,2]
[424212666,1780669838000,-4000.0,0.00010027,2]
[424212675,1780669838000,-166.66,0.00010275,2]
[424212669,1780669838000,-370.0,0.00010053,2]
[424212664,1780669838000,-163.61,0.0001,2]
[424212667,1780669838000,-420.0,0.00010053,2]
[424212668,1780669838000,-1200.0,0.00010053,2]
[424212670,1780669838000,-160.0,0.00010112,2]
[424212672,1780669838000,-2903.61,0.00010187,2]
[424212671,1780669838000,-273.38,0.00010144,2]
[424212674,1780669838000,-500.0,0.00010243,2]
[424212682,1780669838000,-299.99,0.00010475,2]
[424212676,1780669838000,-4000.0,0.00010278,2]
[424212681,1780669838000,-4999.99,0.00010475,2]
[424212665,1780669838000,-3216.02788378,0.0001,2]
[424212680,1780669838000,-7224.23,0.00010475,2]
[424212677,1780669838000,-199.24,0.00010312,2]
[424212678,1780669838000,-206.4,0.00010324,2]
[424212683,1780669838000,-3018.71,0.00010475,2]
[424212685,1780669838000,-12896.17,0.00010475,2]
[424212684,1780669838000,-14201.98,0.00010475,2]
[424212686,1780669838000,-219650.17,0.00010475,2]
[424212687,1780669838000,-150.99,0.00010475,2]
[424212679,1780669838000,-164.02,0.00010458,2]
[424212661,1780669838000,-500.0,9.969e-05,2]
[424212655,1780669838000,-193.0,9.943e-05,2]
[424212660,1780669838000,-250.0,9.961e-05,2]
[424212688,1780669838000,-9999.99,0.00010475,2]
[424212639,1780669838000,-294224.93840823,9.148e-05,2]
[424212643,1780669838000,-240.0,9.22e-05,2]
[424212640,1780669838000,-152.0,9.188e-05,2]
[424212641,1780669838000,-152.0,9.188e-05,2]
[424212642,1780669838000,-215.77576141,9.188e-05,2]
[424212646,1780669838000,-500.0,9.421e-05,2]
[424212645,1780669838000,-2000.0,9.347e-05,2]
[424212647,1780669838000,-44250.32,9.477e-05,2]
[424212644,1780669838000,-5368.9,9.223e-05,2]
[424212663,1780669838000,-514.58932859,0.0001,2]
[424212649,1780669838000,-3763.87,9.7e-05,2]
[424212652,1780669838000,-1687.09666637,9.942e-05,2]
[424212658,1780669838000,-250.0,9.943e-05,2]
[424212659,1780669838000,-193.56075391,9.961e-05,2]
[424212651,1780669838000,-193.0,9.942e-05,2]
[424212648,1780669838000,-500.0,9.695e-05,2]
[424212656,1780669838000,-3278.25513099,9.943e-05,2]
[424212650,1780669838000,-206.4,9.781e-05,2]
[424212653,1780669838000,-445.84051604,9.942e-05,2]
[424212654,1780669838000,-179.36076923,9.942e-05,2]
[424212662,1780669838000,-288.51317347,0.0001,2]
[424212657,1780669838000,-291.97650919,9.943e-05,2]
[424212692,1780669838000,-24999.99,0.00010475,2]
[424212673,1780669838000,-1852.42,0.00010187,2]
[424212690,1780669838000,-19816.59,0.00010475,2]
[424212718,1780669838000,-271.67725733,0.000107,2]
[424212716,1780669838000,-219.75752923,0.00010611,2]
[424212717,1780669838000,-173.77634288,0.00010647,2]
[424212720,1780669838000,-2727.56624731,0.00010711,2]
[424212719,1780669838000,-1096774.43319856,0.000107,2]
[424212724,1780669838000,-8087.07972259,0.000109,2]
[424212733,1780669838000,-425.27,0.00010989,2]
[424212732,1780669838000,-150.0,0.00010959,2]
[424212734,1780669838000,-240.0,0.00010989,2]
[424212730,1780669838000,-150.0,0.00010959,2]
[424212725,1780669838000,-8087.07972257,0.000109,2]
[424212735,1780669838000,-2244.72968379,0.00011,2]
[424212727,1780669838000,-8087.07972257,0.000109,2]
[424212723,1780669838000,-206.4,0.00010868,2]
[424212731,1780669838000,-4550.15,0.00010959,2]
[424212736,1780669838000,-171.1,0.00011,2]
[424212737,1780669838000,-171.1,0.00011,2]
[424212738,1780669838000,-4000.0,0.0001103,2]
[424212739,1780669838000,-4738.41,0.00011041,2]
[424212740,1780669838000,-500.0,0.00011041,2]
[424212742,1780669838000,-500.0,0.00011065,2]
[424212743,1780669838000,-3216.02788378,0.00011085,2]
[424212689,1780669838000,-1745.93,0.00010475,2]
[424212722,1780669838000,-500.0,0.00010791,2]
[424212721,1780669838000,-4000.0,0.00010779,2]
[424212728,1780669838000,-166.66,0.00010911,2]
[424212715,1780669838000,-1230.63166307,0.00010611,2]
[424212693,1780669838000,-5475.56,0.00010475,2]
[424212713,1780669838000,-166.66,0.00010593,2]
[424212691,1780669838000,-9999.99,0.00010475,2]
[424212697,1780669838000,-521.5,0.00010475,2]
[424212694,1780669838000,-1582.07,0.00010475,2]
[424212695,1780669838000,-3751.16,0.00010475,2]
[424212699,1780669838000,-9999.99,0.00010475,2]
[424212698,1780669838000,-1198.18,0.00010475,2]
[424212702,1780669838000,-1560.86,0.00010475,2]
[424212709,1780669838000,-629.36,0.00010475,2]
[424212710,1780669838000,-2000.0,0.00010515,2]
[424212696,1780669838000,-1631.94,0.00010475,2]
[424212707,1780669838000,-3228.48,0.00010475,2]
[424212708,1780669838000,-499.99,0.00010475,2]
[424212703,1780669838000,-41791.3,0.00010475,2]
[424212704,1780669838000,-2775.38,0.00010475,2]
[424212741,1780669838000,-587.0,0.00011058,2]
[424212700,1780669838000,-7661.72,0.00010475,2]
[424212706,1780669838000,-2134.59,0.00010475,2]
[424212714,1780669838000,-6172.1405015,0.000106,2]
[424212701,1780669838000,-999.99,0.00010475,2]
[424212711,1780669838000,-500.0,0.00010517,2]
[424212712,1780669838000,-4000.0,0.00010529,2]
[424212705,1780669838000,-9999.99,0.00010475,2]
[424212781,1780669839000,-2727.56624731,0.00012155,2]
[424212778,1780669839000,-199.24,0.00012031,2]
[424212785,1780669839000,-1057.56677,0.0001232,2]
[424212780,1780669839000,-35682.68261993,0.00012131,2]
[424212782,1780669839000,-1193.676666,0.0001232,2]
[424212784,1780669839000,-202.414943,0.0001232,2]
[424212786,1780669839000,-5635.290749,0.0001232,2]
[424212777,1780669839000,-250.0,0.00011966,2]
[424212789,1780669839000,-177.23074596,0.00012329,2]
[424212788,1780669839000,-521.70114377,0.00012329,2]
[424212787,1780669839000,-2549.87,0.00012329,2]
[424212783,1780669839000,-7151.935636,0.0001232,2]
[424212779,1780669839000,-157.56097649,0.00012106,2]
[424212791,1780669839000,-206.4,0.00012498,2]
[424212794,1780669839000,-1230.63166306,0.00012756,2]
[424212799,1780669839000,-3329.0054933,0.00013,2]
[424212802,1780669839000,-206.4,0.00013041,2]
[424212801,1780669839000,-35682.68261993,0.00013012,2]
[424212790,1780669839000,-8087.07972257,0.00012389,2]
[424212793,1780669839000,-1575.75,0.00012634,2]
[424212792,1780669839000,-35682.68261993,0.00012572,2]
[424212796,1780669839000,-199.24,0.00012891,2]
[424212797,1780669839000,-5400.0,0.000129,4]
[424212795,1780669839000,-2000.0,0.00012852,2]
[424212798,1780669839000,-4733.99941987,0.0001295,2]
[424212804,1780669839000,-5823.6432545,0.00013112,2]
[424212812,1780669839000,-500.0,0.00013151,2]
[424212775,1780669839000,-27200.0,0.000119,4]
[424212800,1780669839000,-9059.29671368,0.00013,5]
[424212774,1780669839000,-35682.68261993,0.00011691,2]
[424212750,1780669839000,-62794.39626149,0.00011099,2]
[424212773,1780669839000,-2000.0,0.00011684,2]
[424212747,1780669839000,-62794.39626149,0.00011099,2]
[424212749,1780669839000,-62794.39626149,0.00011099,2]
[424212744,1780669839000,-884500.4009332,0.00011095,2]
[424212748,1780669839000,-62794.39626149,0.00011099,2]
[424212746,1780669839000,-62794.39626149,0.00011099,2]
[424212745,1780669839000,-62794.39626152,0.00011099,2]
[424212752,1780669839000,-62794.39626149,0.00011099,2]
[424212760,1780669839000,-173.77634288,0.00011491,2]
[424212763,1780669839000,-30046.0,0.00011534,2]
[424212762,1780669839000,-1000.0,0.00011499,2]
[424212761,1780669839000,-1113.08502147,0.00011499,2]
[424212753,1780669839000,-199.24,0.00011172,2]
[424212751,1780669839000,-62794.39626149,0.00011099,2]
[424212776,1780669839000,-206.4,0.00011955,2]
[424212754,1780669839000,-62794.39626149,0.00011188,2]
[424212759,1780669839000,-62794.39626149,0.00011456,2]
[424212756,1780669839000,-166.66,0.00011229,2]
[424212758,1780669839000,-206.4,0.00011411,2]
[424212757,1780669839000,-500.0,0.00011339,2]
[424212764,1780669839000,-1602.0,0.00011534,2]
[424212767,1780669839000,-1013.9748896,0.00011551,3]
[424212768,1780669839000,-1033.42824636,0.00011551,3]
[424212766,1780669839000,-1023.63214271,0.00011551,3]
[424212771,1780669839000,-490.89813202,0.00011613,2]
[424212770,1780669839000,-1500000.0,0.00011552,2]
[424212769,1780669839000,-8087.07972257,0.00011551,2]
[424212765,1780669839000,-1023.63214271,0.00011551,3]
[424212772,1780669839000,-3216.02788378,0.00011681,2]
[424212755,1780669839000,-173.77634288,0.00011225,2]
[424212814,1780669839000,-500.0,0.00013151,2]
[424212805,1780669839000,-500.0,0.00013151,2]
[424212815,1780669839000,-182.6847098,0.00013151,2]
[424212842,1780669839000,-500.0,0.00013151,2]
[424212846,1780669839000,-500.0,0.00013151,2]
[424212847,1780669839000,-150.0,0.00013151,2]
[424212850,1780669839000,-500.0,0.00013151,2]
[424212849,1780669839000,-196.34132809,0.00013151,2]
[424212845,1780669839000,-500.0,0.00013151,2]
[424212844,1780669839000,-500.0,0.00013151,2]
[424212852,1780669839000,-500.0,0.00013151,2]
[424212848,1780669839000,-500.0,0.00013151,2]
[424212843,1780669839000,-500.0,0.00013151,2]
[424212851,1780669839000,-500.0,0.00013151,2]
[424212854,1780669839000,-500.0,0.00013151,2]
[424212856,1780669839000,-442.63494967,0.00013151,2]
[424212841,1780669839000,-375.79794642,0.00013151,2]
[424212853,1780669839000,-222.0,0.00013151,2]
[424212864,1780669839000,-500.0,0.00013151,2]
[424212862,1780669839000,-277.44313622,0.00013151,2]
[424212857,1780669839000,-150.0,0.00013151,2]
[424212863,1780669839000,-500.0,0.00013151,2]
[424212858,1780669839000,-150.0,0.00013151,2]
[424212813,1780669839000,-500.0,0.00013151,2]
[424212861,1780669839000,-286.98646443,0.00013151,2]
[424212860,1780669839000,-150.0,0.00013151,2]
[424212866,1780669839000,-500.0,0.00013151,2]
[424212869,1780669839000,-500.0,0.00013205,2]
[424212867,1780669839000,-500.0,0.00013151,2]
[424212870,1780669839000,-8087.07972257,0.00013226,2]
[424212868,1780669839000,-275.92945887,0.00013151,2]
[424212855,1780669839000,-500.0,0.00013151,2]
[424212840,1780669839000,-500.0,0.00013151,2]
[424212859,1780669839000,-214.93603685,0.00013151,2]
[424212834,1780669839000,-150.0,0.00013151,2]
[424212835,1780669839000,-500.0,0.00013151,2]
[424212808,1780669839000,-500.0,0.00013151,2]
[424212803,1780669839000,-884500.4009332,0.00013043,2]
[424212806,1780669839000,-218.70520512,0.00013151,2]
[424212809,1780669839000,-500.0,0.00013151,2]
[424212811,1780669839000,-500.0,0.00013151,2]
[424212810,1780669839000,-500.0,0.00013151,2]
[424212816,1780669839000,-150.0,0.00013151,2]
[424212818,1780669839000,-297.10471608,0.00013151,2]
[424212824,1780669839000,-500.0,0.00013151,2]
[424212819,1780669839000,-500.0,0.00013151,2]
[424212821,1780669839000,-500.0,0.00013151,2]
[424212823,1780669839000,-150.0,0.00013151,2]
[424212822,1780669839000,-500.0,0.00013151,2]
[424212807,1780669839000,-500.0,0.00013151,2]
[424212817,1780669839000,-150.0,0.00013151,2]
[424212830,1780669839000,-546.23907018,0.00013151,2]
[424212820,1780669839000,-150.0,0.00013151,2]
[424212836,1780669839000,-500.0,0.00013151,2]
[424212832,1780669839000,-500.0,0.00013151,2]
[424212831,1780669839000,-500.0,0.00013151,2]
[424212833,1780669839000,-500.0,0.00013151,2]
[424212829,1780669839000,-527.30036501,0.00013151,2]
[424212838,1780669839000,-203.99141627,0.00013151,2]
[424212839,1780669839000,-500.0,0.00013151,2]
[424212826,1780669839000,-193.76494927,0.00013151,2]
[424212837,1780669839000,-150.0,0.00013151,2]
[424212825,1780669839000,-500.0,0.00013151,2]
[424212828,1780669839000,-500.0,0.00013151,2]
[424212827,1780669839000,-500.0,0.00013151,2]
[424212914,1780669840000,-150.0,0.00013608,2]
[424212899,1780669840000,-1033.42824636,0.00013569,3]
[424212895,1780669840000,-150.0,0.00013559,2]
[424212894,1780669840000,-150.0,0.00013558,2]
[424212898,1780669840000,-150.0,0.00013568,2]
[424212901,1780669840000,-150.0,0.00013574,2]
[424212904,1780669840000,-190.57559559,0.00013583,2]
[424212902,1780669840000,-523.30350104,0.00013578,2]
[424212897,1780669840000,-151.0,0.00013567,2]
[424212903,1780669840000,-150.0,0.00013581,2]
[424212913,1780669840000,-150.0,0.00013605,2]
[424212905,1780669840000,-206.4,0.00013585,2]
[424212907,1780669840000,-150.0,0.00013588,2]
[424212909,1780669840000,-523.30350104,0.00013594,2]
[424212912,1780669840000,-2000.0,0.00013598,2]
[424212911,1780669840000,-33256.6326,0.00013598,2]
[424212910,1780669840000,-2727.56624731,0.00013598,2]
[424212908,1780669840000,-150.0,0.00013591,2]
[424212915,1780669840000,-150.0,0.00013608,2]
[424212900,1780669840000,-233439.72378349,0.0001357,2]
[424212906,1780669840000,-14519.0885804,0.00013585,2]
[424212896,1780669840000,-523.30350104,0.00013563,2]
[424212889,1780669840000,-150.0,0.00013535,2]
[424212893,1780669840000,-150.0,0.00013557,2]
[424212876,1780669840000,-150.0,0.00013488,2]
[424212871,1780669840000,-1113.08502147,0.00013249,2]
[424212877,1780669840000,-150.0,0.00013488,2]
[424212872,1780669840000,-150.0,0.00013488,2]
[424212878,1780669840000,-203.7220427,0.00013488,2]
[424212875,1780669840000,-150.0,0.00013488,2]
[424212874,1780669840000,-150.0,0.00013488,2]
[424212873,1780669840000,-150.0,0.00013488,2]
[424212880,1780669840000,-523.30350104,0.00013488,2]
[424212888,1780669840000,-523.30350104,0.00013533,2]
[424212881,1780669840000,-523.30350104,0.00013503,2]
[424212882,1780669840000,-150.0,0.00013505,2]
[424212884,1780669840000,-150.0,0.00013511,2]
[424212879,1780669840000,-150.0,0.00013488,2]
[424212887,1780669840000,-150.0,0.00013528,2]
[424212885,1780669840000,-523.30350104,0.00013518,2]
[424212883,1780669840000,-150.0,0.00013508,2]
[424212886,1780669840000,-150.0,0.00013522,2]
[424212923,1780669840000,-190.57559559,0.00013641,2]
[424212890,1780669840000,-150.0,0.00013539,2]
[424212891,1780669840000,-150.0,0.00013548,2]
[424212892,1780669840000,-523.30350104,0.00013548,2]
[424212924,1780669840000,-150.0,0.00013643,2]
[424212946,1780669840000,-338.87344356,0.00013698,2]
[424212926,1780669840000,-150.0,0.00013652,2]
[424212945,1780669840000,-500.0,0.00013698,2]
[424212942,1780669840000,-500.19382862,0.00013698,2]
[424212950,1780669840000,-500.0,0.00013698,2]
[424212948,1780669840000,-500.0,0.00013698,2]
[424212949,1780669840000,-500.0,0.00013698,2]
[424212951,1780669840000,-500.0,0.00013698,2]
[424212952,1780669840000,-550.35864884,0.00013698,2]
[424212958,1780669840000,-516.98237672,0.00013698,2]
[424212954,1780669840000,-820.27,0.00013698,2]
[424212939,1780669840000,-150.0,0.00013694,2]
[424212953,1780669840000,-500.0,0.00013698,2]
[424212959,1780669840000,-500.0,0.00013698,2]
[424212955,1780669840000,-547.55,0.00013698,2]
[424212961,1780669840000,-500.0,0.00013698,2]
[424212960,1780669840000,-589.51,0.00013698,2]
[424212963,1780669840000,-500.0,0.00013698,2]
[424212962,1780669840000,-500.0,0.00013698,2]
[424212965,1780669840000,-500.0,0.00013698,2]
[424212964,1780669840000,-500.0,0.00013698,2]
[424212925,1780669840000,-150.0,0.00013648,2]
[424212956,1780669840000,-1058.68,0.00013698,2]
[424212944,1780669840000,-500.0,0.00013698,2]
[424212957,1780669840000,-738.9,0.00013698,2]
[424212943,1780669840000,-500.51682456,0.00013698,2]
[424212947,1780669840000,-500.0,0.00013698,2]
[424212917,1780669840000,-523.30350104,0.00013624,2]
[424212918,1780669840000,-150.0,0.00013625,2]
[424212922,1780669840000,-523.30350104,0.00013639,2]
[424212921,1780669840000,-150.0,0.0001363,2]
[424212919,1780669840000,-150.0,0.00013628,2]
[424212916,1780669840000,-523.30350104,0.00013609,2]
[424212927,1780669840000,-523.30350104,0.00013654,2]
[424212928,1780669840000,-150.0,0.0001366,2]
[424212935,1780669840000,-523.30350104,0.00013684,2]
[424212920,1780669840000,-150.0,0.00013628,2]
[424212929,1780669840000,-150.0,0.00013668,2]
[424212933,1780669840000,-150.0,0.00013675,2]
[424212934,1780669840000,-150.0,0.00013677,2]
[424212930,1780669840000,-523.30350104,0.00013669,2]
[424212931,1780669840000,-206.6924006,0.0001367,2]
[424212932,1780669840000,-150.0,0.00013675,2]
[424212937,1780669840000,-2288.9542795,0.00013685,2]
[424212938,1780669840000,-150.0,0.00013687,2]
[424212940,1780669840000,-500.0,0.00013698,2]
[424212936,1780669840000,-124723.6969377,0.00013685,2]
[424212941,1780669840000,-500.0,0.00013698,2]
[424213006,1780669841000,-500.0,0.00013699,2]
[424213012,1780669841000,-500.0,0.00013699,2]
[424213008,1780669841000,-500.0,0.00013699,2]
[424213002,1780669841000,-152.0,0.00013699,2]
[424213004,1780669841000,-616.90986965,0.00013699,2]
[424212991,1780669841000,-683.57,0.00013698,2]
[424213003,1780669841000,-155.0,0.00013699,2]
[424213001,1780669841000,-151.0,0.00013699,2]
[424212995,1780669841000,-3921.33,0.00013699,2]
[424213013,1780669841000,-500.0,0.00013699,2]
[424212993,1780669841000,-150.0,0.00013698,2]
[424213005,1780669841000,-500.0,0.00013699,2]
[424213009,1780669841000,-500.0,0.00013699,2]
[424213016,1780669841000,-500.0,0.00013699,2]
[424213010,1780669841000,-500.0,0.00013699,2]
[424213011,1780669841000,-500.0,0.00013699,2]
[424213015,1780669841000,-500.0,0.00013699,2]
[424213027,1780669841000,-500.0,0.00013699,2]
[424213026,1780669841000,-500.0,0.00013699,2]
[424213020,1780669841000,-500.0,0.00013699,2]
[424213018,1780669841000,-500.0,0.00013699,2]
[424213014,1780669841000,-500.0,0.00013699,2]
[424213019,1780669841000,-500.0,0.00013699,2]
[424213017,1780669841000,-500.0,0.00013699,2]
[424213023,1780669841000,-500.0,0.00013699,2]
[424213021,1780669841000,-500.0,0.00013699,2]
[424212996,1780669841000,-200.0,0.00013699,2]
[424213007,1780669841000,-500.0,0.00013699,2]
[424212997,1780669841000,-166.66,0.00013699,2]
[424212968,1780669841000,-1462.83,0.00013698,2]
[424212992,1780669841000,-683.67809119,0.00013698,2]
[424212971,1780669841000,-683.57,0.00013698,2]
[424212972,1780669841000,-683.57,0.00013698,2]
[424212973,1780669841000,-683.57,0.00013698,2]
[424212974,1780669841000,-683.57,0.00013698,2]
[424212967,1780669841000,-500.0,0.00013698,2]
[424212969,1780669841000,-683.57,0.00013698,2]
[424213022,1780669841000,-500.0,0.00013699,2]
[424212966,1780669841000,-1292.26,0.00013698,2]
[424212970,1780669841000,-683.57,0.00013698,2]
[424212977,1780669841000,-683.57,0.00013698,2]
[424212975,1780669841000,-683.57,0.00013698,2]
[424212978,1780669841000,-683.57,0.00013698,2]
[424212981,1780669841000,-683.57,0.00013698,2]
[424212994,1780669841000,-2500.0,0.00013699,2]
[424212983,1780669841000,-683.57,0.00013698,2]
[424212988,1780669841000,-683.57,0.00013698,2]
[424212976,1780669841000,-683.57,0.00013698,2]
[424212982,1780669841000,-683.57,0.00013698,2]
[424212979,1780669841000,-683.57,0.00013698,2]
[424212984,1780669841000,-683.57,0.00013698,2]
[424212980,1780669841000,-683.57,0.00013698,2]
[424212986,1780669841000,-683.57,0.00013698,2]